fUSD/lending_fUSD_20260219
["ID","MTS","AMOUNT","RATE_DAILY","PERIOD"]
[405959985,1771459831911,-166.66,0.00010046,2]
[405959986,1771459831921,-185.04141975,0.00010287,2]
[405959987,1771459831932,-166.66,0.00010377,2]
[405959988,1771459831943,-576.41816198,0.00010387,2]
[405959989,1771459831954,-6361.88908479,0.00010387,2]
[405959990,1771459831965,-185.04141975,0.00010387,2]
[405959991,1771459831975,-158.30449972,0.00010387,2]
[405959992,1771459831986,-696.00803314,0.00010387,2]
[405959993,1771459831999,-268.83041636,0.00010387,2]
[405959994,1771459832009,-1668.7,0.00010474,2]
[405959995,1771459832021,-184.237,0.00010474,2]
[405959996,1771459832031,-969.15300756,0.00010477,2]
[405959997,1771459832042,-188.31800052,0.00010486,2]
[405959998,1771459832053,-1000.0,0.00010487,2]
[405959999,1771459832063,-72453.2063259,0.00010487,2]
[405960000,1771459832076,-10984.30080454,0.00010487,2]
[405960001,1771459832123,-915.50478277,0.00010487,2]
[405960003,1771459832345,-1690.97236446,0.00010487,2]
[405960014,1771459839767,-406.77729726,0.00010486,2]
[405960016,1771459839777,-91.79079502,0.00010486,2]
[405960018,1771459839789,-384.06230332,0.00010486,2]
[405960019,1771459839799,-411.98557973,0.00010486,2]
[405960020,1771459839911,-88.01442027,0.00010486,2]
[405960022,1771459839921,-500.0,0.00010486,2]
[405960024,1771459839931,-500.0,0.00010486,2]
[405960025,1771459839940,-500.0,0.00010486,2]
[405960027,1771459839949,-500.0,0.00010486,2]
[405960029,1771459839963,-500.0,0.00010486,2]
[405960030,1771459839972,-1771687.74861935,0.00010487,2]
[405960031,1771459839983,-665.875,0.00010487,2]
[405960032,1771459839996,-1025.00293365,0.00010487,2]
[405960033,1771459840411,199.0,0.0001905,120]
[405960047,1771459845513,-500.0,0.00010486,2]
[405960048,1771459845523,-500.0,0.00010486,2]
[405960049,1771459845533,-5645.049683,0.00010487,2]
[405960050,1771459845544,-27403.81449512,0.00010487,2]
[405960051,1771459845815,-854.17,0.00010487,2]
[405960052,1771459845827,-511.0,0.00010487,2]
[405960056,1771459854795,198.0,0.00018,30]
[405960057,1771459879760,-164.29,0.00019178,30]
[405960058,1771459879819,-164.29,0.00027397,30]
[405960059,1771459879852,-516.0,0.0002886,36]
[405960060,1771459879878,-221.68,0.00029449,30]
[405960061,1771459879904,-274.0,0.00029671,36]
[405960062,1771459879932,-1652.62299308,0.0003,30]
[405960063,1771459879957,-1688.43,0.0003,30]
[405960064,1771459879987,-530.39303602,0.000301,30]
[405960065,1771459880013,-500.0,0.000301,30]
[405960066,1771459880044,-500.0,0.000301,30]
[405960067,1771459880073,-150.0,0.00030909,36]
[405960068,1771459880101,-150.0,0.00030909,36]
[405960069,1771459880128,-296.0,0.00030909,36]
[405960070,1771459880153,-300.182201,0.0003109,50]
[405960071,1771459880179,-1020.51,0.00032,120]
[405960072,1771459880212,-151.0,0.00032877,31]
[405960073,1771459880238,-151.0,0.00032877,31]
[405960074,1771459880264,-151.0,0.00032877,31]
[405960075,1771459880291,-1020.51,0.0003296,120]
[405960076,1771459880318,-221.68,0.00033173,30]
[405960077,1771459880345,-151.0,0.000332,31]
[405960078,1771459880370,-151.0,0.000332,31]
[405960079,1771459880396,-151.0,0.000332,31]
[405960080,1771459880422,-499.371599,0.000332,31]
[405960081,1771459880449,-499.371599,0.000332,31]
[405960082,1771459880481,-499.371599,0.000332,31]
[405960083,1771459880509,-499.371599,0.000332,31]
[405960084,1771459880537,-1020.51,0.0003392,120]
[405960085,1771459880563,-1291.1179063,0.00034346,120]
[405960086,1771459880595,-2885.36850104,0.00034825,120]
[405960087,1771459880622,-1020.51,0.0003488,120]
[405960088,1771459880648,-151.0,0.00035,31]
[405960089,1771459880675,-317.340376,0.00035,31]
[405960090,1771459880703,-317.340376,0.00035,31]
[405960091,1771459880728,-317.340376,0.00035,31]
[405960092,1771459880754,-317.340369,0.00035,31]
[405960093,1771459880779,-151.051476,0.00035,31]
[405960094,1771459880806,-379.772711,0.00035,31]
[405960095,1771459880833,-379.772711,0.00035,31]
[405960096,1771459880859,-379.772711,0.00035,31]
[405960097,1771459880887,-379.772711,0.00035,31]
[405960098,1771459880915,-918.603616,0.00035,31]
[405960099,1771459880940,-918.603616,0.00035,31]
[405960100,1771459880965,-918.603616,0.00035,31]
[405960101,1771459880991,-918.603616,0.00035,31]
[405960102,1771459881020,-151.0,0.00035,31]
[405960103,1771459881050,-576.128709,0.00035,31]
[405960104,1771459881077,-576.128709,0.00035,31]
[405960105,1771459881103,-576.128709,0.00035,31]
[405960106,1771459881131,-576.128709,0.00035,31]
[405960107,1771459881157,-1483.627365,0.00035,31]
[405960108,1771459881182,-1483.627365,0.00035,31]
[405960109,1771459881210,-1483.627365,0.00035,31]
[405960110,1771459881235,-1483.627365,0.00035,31]
[405960111,1771459881261,-160.857364,0.00035,31]
[405960112,1771459881286,-480.08512,0.00035,31]
[405960113,1771459881312,-480.08512,0.00035,31]
[405960114,1771459881555,-480.08512,0.00035,31]
[405960115,1771459881582,-480.08512,0.00035,31]
[405960116,1771459881610,-1668.7,0.00035356,41]
[405960117,1771459881636,-177.40234237,0.00035589,120]
[405960118,1771459881663,-236.10614528,0.00035589,30]
[405960119,1771459881689,-415.38461538,0.00035589,30]
[405960120,1771459881716,-251.31923705,0.00035589,30]
[405960121,1771459881741,-164.29,0.00035616,30]
[405960122,1771459881766,-1020.51,0.0003584,120]
[405960123,1771459881793,-271.604302,0.00036,31]
[405960124,1771459881818,-217.636,0.00036,31]
[405960125,1771459881842,-217.636,0.00036,31]
[405960126,1771459881866,-217.636,0.00036,31]
[405960127,1771459881892,-217.636,0.00036,31]
[405960128,1771459881930,-298.0,0.00036066,36]
[405960129,1771459881960,-170.2,0.0003652,60]
[405960130,1771459881987,-1020.51,0.000368,120]
[405960131,1771459882016,-221.68,0.00036898,60]
[405960132,1771459882045,-3375.50544049,0.000372,120]
[405960133,1771459882072,-3375.50544048,0.000372,120]
[405960134,1771459882100,-3375.50544048,0.000372,120]
[405960135,1771459882127,-3375.50544048,0.000372,120]
[405960136,1771459882154,-3375.50544048,0.000372,120]
[405960137,1771459882180,-8157.13626351,0.000375,120]
[405960138,1771459882206,-1020.51,0.0003776,120]
[405960139,1771459882231,-390.11,0.000378,30]
[405960140,1771459882257,-735.42,0.00037808,60]
[405960141,1771459882283,-735.42,0.00037839,80]
[405960142,1771459882312,-735.42,0.00037869,100]
[405960143,1771459882338,-731.27573335,0.000379,120]
[405960144,1771459882364,-735.42,0.000379,120]
[405960145,1771459882391,-266.65793827,0.00037999,120]
[405960146,1771459882416,-16222.64900825,0.000381,33]
[405960147,1771459882443,-1037.3,0.00038327,30]
[405960148,1771459882471,-500.0,0.00038356,60]
[405960149,1771459882496,-500.0,0.00038411,60]
[405960150,1771459882522,-500.0,0.00038466,60]
[405960151,1771459882552,-500.0,0.0003852,60]
[405960152,1771459882580,-500.0,0.00038575,60]
[405960153,1771459882607,-500.0,0.0003863,60]
[405960154,1771459882634,-500.0,0.00038685,60]
[405960155,1771459882661,-500.0,0.000387,120]
[405960156,1771459882688,-500.0,0.000387,120]
[405960157,1771459882715,-500.0,0.000387,120]
[405960158,1771459882742,-500.0,0.000387,120]
[405960159,1771459882768,-500.0,0.000387,120]
[405960160,1771459882796,-1020.51,0.0003872,120]
[405960161,1771459882822,-523.8565669,0.0003874,60]
[405960162,1771459882848,-589.0158346,0.000389,120]
[405960163,1771459882874,-234.58886556,0.0003899,120]
[405960164,1771459882899,-151.39488244,0.00039,30]
[405960165,1771459882925,-255.32004225,0.00039,120]
[405960166,1771459882951,-13310.50110895,0.00039,120]
[405960167,1771459882981,-3045.0,0.00039,30]
[405960168,1771459883011,-151.0,0.00039,120]
[405960169,1771459883037,-1721.830843,0.00039,120]
[405960170,1771459883074,-1721.830843,0.00039,120]
[405960171,1771459883104,-1721.830843,0.00039,120]
[405960172,1771459883131,-1721.83084,0.00039,120]
[405960173,1771459883158,-12331.40634017,0.000391,120]
[405960174,1771459883184,-1037.3,0.00039232,30]
[405960175,1771459883214,-159.18736862,0.00039452,30]
[405960176,1771459883242,-411.0,0.00039562,120]
[405960177,1771459883268,-159.18736862,0.00039616,30]
[405960178,1771459883294,-1020.51,0.0003968,120]
[405960179,1771459883321,-159.18736862,0.00039781,30]
[405960180,1771459883371,-159.18736862,0.00039973,30]
[405960181,1771459883397,-364.0,0.0004,120]
[405960182,1771459883426,-1024.0,0.0004,120]
[405960183,1771459883453,-150.0,0.0004,120]
[405960184,1771459883479,-160.0,0.0004,120]
[405960185,1771459883505,-160.0,0.0004,30]
[405960186,1771459883531,-160.0,0.0004,120]
[405960187,1771459883560,-160.0,0.0004,30]
[405960188,1771459883587,-173.62051493,0.0004,30]
[405960189,1771459883619,-2000.0,0.0004,120]
[405960190,1771459883651,-1037.3,0.00040136,30]
[405960191,1771459883678,-159.18736862,0.00040137,30]
[405960192,1771459883705,-2483.52,0.000403,30]
[405960193,1771459883732,-159.18736862,0.00040329,30]
[405960194,1771459883760,-159.18736862,0.00040493,30]
[405960195,1771459883788,-151.0,0.00040548,120]
[405960196,1771459883817,-151.0,0.00040548,120]
[405960197,1771459883843,-151.0,0.00040548,120]
[405960198,1771459883872,-151.0,0.00040548,120]
[405960199,1771459884091,-151.0,0.00040548,120]
[405960200,1771459884120,-151.0,0.00040548,120]
[405960201,1771459884145,-151.0,0.00040548,120]
[405960202,1771459884171,-151.0,0.00040548,120]
[405960203,1771459884197,-289.9619,0.00040548,120]
[405960204,1771459884241,-151.0,0.00040548,120]
[405960205,1771459884271,-158.698853,0.00040548,120]
[405960206,1771459884299,-151.0,0.00040548,120]
[405960207,1771459884326,-151.0,0.00040548,120]
[405960208,1771459884354,-168.958223,0.00040548,120]
[405960209,1771459884383,-259.459034,0.00040548,120]
[405960210,1771459884411,-231.317016,0.00040548,120]
[405960211,1771459884440,-231.317016,0.00040548,120]
[405960212,1771459884469,-231.317016,0.00040548,120]
[405960213,1771459884498,-231.317016,0.00040548,120]
[405960214,1771459884526,-231.317016,0.00040548,120]
[405960215,1771459884554,-231.317016,0.00040548,120]
[405960216,1771459884583,-231.317016,0.00040548,120]
[405960217,1771459884611,-231.317016,0.00040548,120]
[405960218,1771459884639,-151.0,0.00040548,120]
[405960219,1771459884667,-151.0,0.00040548,120]
[405960220,1771459884695,-231.317016,0.00040548,120]
[405960221,1771459884722,-151.0,0.00040548,120]
[405960222,1771459884749,-231.317016,0.00040548,120]
[405960223,1771459884776,-151.0,0.00040548,120]
[405960224,1771459884803,-231.317016,0.00040548,120]
[405960225,1771459884829,-231.317016,0.00040548,120]
[405960226,1771459884858,-151.0,0.00040548,120]
[405960227,1771459884886,-231.317016,0.00040548,120]
[405960228,1771459884913,-151.0,0.00040548,120]
[405960229,1771459884939,-231.317016,0.00040548,120]
[405960230,1771459884966,-287.28,0.00040548,120]
[405960231,1771459884992,-231.317016,0.00040548,120]
[405960232,1771459885021,-231.317016,0.00040548,120]
[405960233,1771459885048,-151.0,0.00040548,120]
[405960234,1771459885077,-151.0,0.00040548,120]
[405960235,1771459885103,-151.0,0.00040548,120]
[405960236,1771459885130,-151.0,0.00040548,120]
[405960237,1771459885156,-151.0,0.00040548,120]
[405960238,1771459885183,-151.0,0.00040548,120]
[405960239,1771459885210,-151.0,0.00040548,120]
[405960240,1771459885237,-151.0,0.00040548,120]
[405960241,1771459885263,-151.0,0.00040548,120]
[405960242,1771459885289,-151.0,0.00040548,120]
[405960243,1771459885315,-151.0,0.00040548,120]
[405960244,1771459885343,-151.0,0.00040548,120]
[405960245,1771459885370,-151.0,0.00040548,120]
[405960246,1771459885396,-151.0,0.00040548,120]
[405960247,1771459885422,-330.877147,0.00040548,120]
[405960248,1771459885448,-260.231085,0.00040548,120]
[405960249,1771459885475,-154.010918,0.00040548,120]
[405960250,1771459885502,-330.877147,0.00040548,120]
[405960251,1771459885529,-330.877147,0.00040548,120]
[405960252,1771459885557,-330.877147,0.00040548,120]
[405960253,1771459885583,-330.877147,0.00040548,120]
[405960254,1771459885610,-330.877147,0.00040548,120]
[405960255,1771459885636,-330.877147,0.00040548,120]
[405960256,1771459885662,-330.877147,0.00040548,120]
[405960257,1771459885689,-330.877147,0.00040548,120]
[405960258,1771459885715,-330.877147,0.00040548,120]
[405960259,1771459885741,-330.877147,0.00040548,120]
[405960260,1771459885767,-330.877147,0.00040548,120]
[405960261,1771459885792,-330.877147,0.00040548,120]
[405960262,1771459885819,-330.877147,0.00040548,120]
[405960263,1771459885845,-330.877147,0.00040548,120]
[405960264,1771459885870,-330.877147,0.00040548,120]
[405960265,1771459885895,-330.877147,0.00040548,120]
[405960266,1771459885921,-330.877147,0.00040548,120]
[405960267,1771459885946,-330.877147,0.00040548,120]
[405960268,1771459885972,-330.877153,0.00040548,120]
[405960269,1771459885996,-150.0,0.0004059,120]
[405960270,1771459886024,-221.68,0.00040622,60]
[405960271,1771459886049,-1020.51,0.0004064,120]
[405960272,1771459886076,-159.18736862,0.00040658,30]
[405960273,1771459886102,-1444.0,0.00040658,120]
[405960274,1771459886126,-159.18736862,0.00040849,30]
[405960275,1771459886152,-159.18736862,0.00041014,30]
[405960276,1771459886177,-1037.3,0.00041041,30]
[405960277,1771459886203,-841.0,0.00041096,120]
[405960278,1771459886227,-211.75,0.00041096,120]
[405960279,1771459886252,-295.0,0.00041096,60]
[405960280,1771459886277,-765.0,0.00041096,120]
[405960281,1771459886303,-765.0,0.00041096,60]
[405960282,1771459886328,-765.0,0.00041096,60]
[405960283,1771459886364,-765.0,0.00041096,60]
[405960284,1771459886389,-765.0,0.00041096,60]
[405960285,1771459886413,-765.0,0.00041096,60]
[405960286,1771459886614,-765.0,0.00041096,60]
[405960287,1771459886641,-1649.0,0.00041096,90]
[405960288,1771459886667,-1649.0,0.00041096,90]
[405960289,1771459886693,-1649.0,0.00041096,90]
[405960290,1771459886719,-761.0,0.00041096,60]
[405960291,1771459886744,-761.0,0.00041096,60]
[405960292,1771459886770,-761.0,0.00041096,60]
[405960293,1771459886795,-761.0,0.00041096,60]
[405960294,1771459886819,-849.06225705,0.00041096,60]
[405960295,1771459886844,-790.0,0.00041096,60]
[405960296,1771459886869,-790.0,0.00041096,60]
[405960297,1771459886894,-790.0,0.00041096,60]
[405960298,1771459886919,-790.0,0.00041096,60]
[405960299,1771459886944,-790.0,0.00041096,60]
[405960300,1771459886969,-790.0,0.00041096,60]
[405960301,1771459886993,-790.0,0.00041096,60]
[405960302,1771459887017,-500.0,0.00041096,120]
[405960303,1771459887046,-150.0,0.00041096,60]
[405960304,1771459887072,-500.0,0.00041151,120]
[405960305,1771459887098,-166.90210863,0.00041151,60]
[405960306,1771459887124,-159.18736862,0.00041178,30]
[405960307,1771459887149,-500.0,0.00041206,120]
[405960308,1771459887174,-150.0,0.00041212,120]
[405960309,1771459887200,-150.0,0.00041212,120]
[405960310,1771459887226,-197.0,0.00041212,120]
[405960311,1771459887251,-500.0,0.0004126,120]
[405960312,1771459887277,-500.0,0.00041315,120]
[405960313,1771459887304,-841.0,0.0004137,120]
[405960314,1771459887330,-500.0,0.0004137,120]
[405960315,1771459887356,-167.87421681,0.00041425,120]
[405960316,1771459887382,-414.75,0.00041496,30]
[405960317,1771459887408,-2483.52,0.000415,30]
[405960318,1771459887437,-478821.71577731,0.000415,30]
[405960319,1771459887464,-2292.50022909,0.000415,30]
[405960320,1771459887490,-151.0,0.000415,120]
[405960321,1771459887516,-151.0,0.000415,120]
[405960322,1771459887542,-151.0,0.000415,120]
[405960323,1771459887569,-499.371599,0.000415,120]
[405960324,1771459887595,-499.371599,0.000415,120]
[405960325,1771459887621,-499.371599,0.000415,120]
[405960326,1771459887648,-499.371599,0.000415,120]
[405960327,1771459887674,-231.317016,0.000415,120]
[405960328,1771459887702,-231.317016,0.000415,120]
[405960329,1771459887728,-151.0,0.000415,120]
[405960330,1771459887756,-231.317016,0.000415,120]
[405960331,1771459887783,-231.317022,0.000415,120]
[405960332,1771459887808,-379.772711,0.000415,120]
[405960333,1771459887833,-379.772711,0.000415,120]
[405960334,1771459887858,-379.772711,0.000415,120]
[405960335,1771459887883,-379.772712,0.000415,120]
[405960336,1771459887909,-918.603616,0.000415,120]
[405960337,1771459887934,-918.603616,0.000415,120]
[405960338,1771459887959,-918.603616,0.000415,120]
[405960339,1771459887983,-918.603617,0.000415,120]
[405960340,1771459888007,-151.0,0.000415,120]
[405960341,1771459888036,-576.128709,0.000415,120]
[405960342,1771459888060,-576.128709,0.000415,120]
[405960343,1771459888085,-576.128709,0.000415,120]
[405960344,1771459888112,-576.128715,0.000415,120]
[405960345,1771459888136,-1483.627365,0.000415,120]
[405960346,1771459888160,-1483.627365,0.000415,120]
[405960347,1771459888185,-1483.627365,0.000415,120]
[405960348,1771459888210,-1483.627363,0.000415,120]
[405960349,1771459888235,-480.08512,0.000415,120]
[405960350,1771459888259,-480.08512,0.000415,120]
[405960351,1771459888284,-480.08512,0.000415,120]
[405960352,1771459888309,-480.085127,0.000415,120]
[405960353,1771459888335,-1020.51,0.000416,120]
[405960354,1771459888362,-841.0,0.00041644,120]
[405960355,1771459888388,-11222.0,0.000417,117]
[405960356,1771459888413,-841.0,0.00041918,120]
[405960357,1771459888438,-175.2871213,0.00041946,120]
[405960358,1771459888464,-1037.3,0.00041946,30]
[405960359,1771459888490,-200.0,0.00041999,120]
[405960360,1771459888516,-162.47,0.00042,120]
[405960361,1771459888542,-691.0,0.00042,30]
[405960362,1771459888568,-2057.05464684,0.00042,120]
[405960363,1771459888595,-500.0,0.00042,120]
[405960364,1771459888620,-150.0,0.00042173,120]
[405960365,1771459888646,-841.0,0.00042192,120]
[405960366,1771459888673,-500.0,0.00042438,120]
[405960367,1771459888698,-500.0,0.00042438,120]
[405960368,1771459888723,-841.0,0.00042466,120]
[405960369,1771459888748,-500.0,0.000425,120]
[405960370,1771459888773,-3000.0,0.000425,120]
[405960371,1771459888799,-1020.51,0.0004256,120]
[405960372,1771459888825,-500.0,0.00042575,120]
[405960373,1771459888999,-500.0,0.00042575,120]
[405960374,1771459889028,-168.06204034,0.00042603,120]
[405960375,1771459889056,-500.0,0.00042712,120]
[405960376,1771459889083,-841.0,0.0004274,120]
[405960377,1771459889109,-500.0,0.00042782,60]
[405960378,1771459889134,-500.0,0.00042782,60]
[405960379,1771459889160,-500.0,0.00042782,60]
[405960380,1771459889185,-2483.52,0.000428,30]
[405960381,1771459889211,-1037.3,0.00042851,120]
[405960382,1771459889237,-10846.26443224,0.0004288,60]
[405960383,1771459889264,-6910.62509967,0.0004291,30]
[405960384,1771459889289,-87470.03486021,0.00042998,30]
[405960385,1771459889315,-200.0,0.00042999,120]
[405960386,1771459889340,-161.0,0.00043,120]
[405960387,1771459889366,-8494.88534267,0.00043,120]
[405960388,1771459889392,-552.80631386,0.00043,120]
[405960389,1771459889418,-691.0,0.00043,30]
[405960390,1771459889444,-40418.37737071,0.00043,30]
[405960391,1771459889470,-153.089,0.00043,30]
[405960392,1771459889496,-500.0,0.00043,120]
[405960393,1771459889523,-841.0,0.00043014,120]
[405960394,1771459889550,-160.0,0.00043068,120]
[405960395,1771459889581,-284.0,0.00043068,120]
[405960396,1771459889608,-54058.74234565,0.0004321,120]
[405960397,1771459889634,-217.636,0.0004322,120]
[405960398,1771459889660,-217.636,0.0004322,120]
[405960399,1771459889686,-217.636,0.0004322,120]
[405960400,1771459889712,-217.636,0.0004322,120]
[405960401,1771459889738,-62111.21143548,0.00043221,30]
[405960402,1771459889765,-841.0,0.00043288,120]
[405960403,1771459889790,-50000.0,0.00043333,32]
[405960404,1771459889815,-50000.0,0.00043333,33]
[405960405,1771459889841,-50000.0,0.00043333,34]
[405960406,1771459889866,-50000.0,0.00043333,35]
[405960407,1771459889891,-50000.0,0.00043333,36]
[405960408,1771459889916,-51320.87239778,0.00043333,37]
[405960409,1771459889942,-354.93284396,0.0004342,60]
[405960410,1771459889967,-500.0,0.0004342,60]
[405960411,1771459889991,-500.0,0.0004342,60]
[405960412,1771459890018,-500.0,0.0004342,60]
[405960413,1771459890046,-500.0,0.0004342,30]
[405960414,1771459890078,-500.0,0.000435,120]
[405960415,1771459890104,-1020.51,0.0004352,120]
[405960416,1771459890129,-841.0,0.00043562,120]
[405960417,1771459890161,-1037.3,0.00043756,120]
[405960418,1771459890187,-2483.52,0.000438,30]
[405960419,1771459890211,-1359.53,0.00043804,30]
[405960420,1771459890237,-550.91433899,0.00043808,120]
[405960421,1771459890262,-969.23076923,0.00043808,120]
[405960422,1771459890287,-315.76006705,0.00043808,120]
[405960423,1771459890311,-270.65148605,0.00043808,120]
[405960424,1771459890336,-4271.0,0.00043808,120]
[405960425,1771459890362,-4271.0,0.00043808,120]
[405960426,1771459890388,-4271.0,0.00043808,120]
[405960427,1771459890414,-4271.0,0.00043808,120]
[405960428,1771459890439,-4271.0,0.00043808,120]
[405960429,1771459890465,-500.0,0.00043835,120]
[405960430,1771459890491,-500.0,0.00043835,120]
[405960431,1771459890516,-500.0,0.00043835,120]
[405960432,1771459890542,-500.0,0.00043835,120]
[405960433,1771459890569,-500.0,0.00043835,120]
[405960434,1771459890594,-500.0,0.00043835,120]
[405960435,1771459890620,-500.0,0.00043835,120]
[405960436,1771459890650,-500.0,0.00043835,120]
[405960437,1771459890676,-500.0,0.00043835,120]
[405960438,1771459890703,-500.0,0.00043835,120]
[405960439,1771459890729,-500.0,0.00043835,120]
[405960440,1771459890756,-500.0,0.00043835,120]
[405960441,1771459890782,-500.0,0.00043835,120]
[405960442,1771459890809,-500.0,0.00043835,120]
[405960443,1771459890835,-500.0,0.00043835,120]
[405960444,1771459890860,-500.0,0.00043835,120]
[405960445,1771459890887,-688.79,0.00043835,60]
[405960446,1771459890911,-688.79,0.00043835,60]
[405960447,1771459890936,-688.79,0.00043835,60]
[405960448,1771459890960,-688.79,0.00043835,60]
[405960449,1771459890985,-688.79,0.00043835,60]
[405960450,1771459891009,-688.79,0.00043835,60]
[405960451,1771459891038,-688.79,0.00043835,60]
[405960452,1771459891063,-688.79,0.00043835,60]
[405960453,1771459891088,-688.79,0.00043835,60]
[405960454,1771459891116,-688.79,0.00043835,60]
[405960455,1771459891140,-688.79,0.00043835,60]
[405960456,1771459891166,-688.79,0.00043835,60]
[405960457,1771459891192,-688.79,0.00043835,60]
[405960458,1771459891221,-688.79,0.00043835,60]
[405960459,1771459891411,-688.79,0.00043835,60]
[405960460,1771459891438,-688.79,0.00043835,60]
[405960461,1771459891466,-688.79,0.00043835,60]
[405960462,1771459891493,-688.79,0.00043835,60]
[405960463,1771459891519,-688.79,0.00043835,60]
[405960464,1771459891546,-688.79,0.00043835,60]
[405960465,1771459891573,-688.79,0.00043835,60]
[405960466,1771459891599,-688.79,0.00043835,60]
[405960467,1771459891624,-688.79,0.00043835,60]
[405960468,1771459891649,-688.92313314,0.00043835,60]
[405960469,1771459891674,-457.87,0.00043835,120]
[405960470,1771459891699,-500.0,0.00043835,120]
[405960471,1771459891725,-500.0,0.00043835,120]
[405960472,1771459891750,-500.0,0.00043835,120]
[405960473,1771459891775,-500.0,0.00043835,120]
[405960474,1771459891800,-500.0,0.00043835,120]
[405960475,1771459891825,-500.0,0.00043835,120]
[405960476,1771459891850,-500.0,0.00043835,120]
[405960477,1771459891875,-500.0,0.00043835,120]
[405960478,1771459891900,-500.0,0.00043835,120]
[405960479,1771459891930,-234.21094974,0.00043835,120]
[405960480,1771459891956,-500.0,0.00043835,120]
[405960481,1771459891982,-322.40330285,0.00043835,120]
[405960482,1771459892007,-500.0,0.00043835,120]
[405960483,1771459892032,-500.0,0.00043835,120]
[405960484,1771459892058,-501.32019387,0.00043835,120]
[405960485,1771459892083,-500.0,0.00043835,120]
[405960486,1771459892110,-500.0,0.00043835,120]
[405960487,1771459892135,-500.0,0.00043835,120]
[405960488,1771459892159,-500.0,0.00043835,120]
[405960489,1771459892184,-500.0,0.00043835,120]
[405960490,1771459892213,-500.0,0.00043835,120]
[405960491,1771459892237,-500.0,0.00043835,120]
[405960492,1771459892261,-500.0,0.00043835,120]
[405960493,1771459892286,-500.0,0.00043835,120]
[405960494,1771459892312,-500.0,0.00043835,120]
[405960495,1771459892336,-500.0,0.00043835,120]
[405960496,1771459892360,-233.93235063,0.00043835,120]
[405960497,1771459892385,-500.0,0.00043835,120]
[405960498,1771459892411,-346.56793343,0.00043835,120]
[405960499,1771459892437,-357.71727451,0.00043835,120]
[405960500,1771459892462,-500.0,0.00043835,120]
[405960501,1771459892489,-500.0,0.00043835,120]
[405960502,1771459892515,-410.408236,0.00043835,120]
[405960503,1771459892540,-500.0,0.00043835,120]
[405960504,1771459892565,-533.50035859,0.00043835,120]
[405960505,1771459892591,-500.0,0.00043835,120]
[405960506,1771459892617,-500.0,0.00043835,120]
[405960507,1771459892642,-500.0,0.00043835,120]
[405960508,1771459892668,-500.0,0.00043835,120]
[405960509,1771459892694,-500.0,0.00043835,120]
[405960510,1771459892720,-500.0,0.00043835,120]
[405960511,1771459892744,-500.0,0.00043835,120]
[405960512,1771459892769,-500.0,0.00043835,120]
[405960513,1771459892794,-500.0,0.00043835,120]
[405960514,1771459892819,-500.0,0.00043835,120]
[405960515,1771459892844,-500.0,0.00043835,120]
[405960516,1771459892868,-500.0,0.00043835,120]
[405960517,1771459892893,-500.0,0.00043835,120]